[Event "Titled Tuesday Blitz December 20 Early 2022"]
[White "yoelpolanco"]
[Black "DefiantChair"]
[WhiteElo "2374"]
[BlackElo "2631"]
[Result "0-1"]
[Round "04"]
[TimeControl "180+2"]
[Date "2022.12.20"]
[WhiteClock "0:00:59"]
[BlackClock "0:02:06"]

1. d4 {[%clk 0:03:00]}  Nf6 {[%clk 0:03:00]} 2. Nf3 {[%clk 0:02:59]}  d5 {[%clk 0:03:00]} 3. c4 {[%clk 0:02:59]}  e6 {[%clk 0:03:00]} 4. Nc3 {[%clk 0:02:57]}  Bb4 {[%clk 0:02:59]} 5. cxd5 {[%clk 0:02:56]}  exd5 {[%clk 0:03:00]} 6. Bg5 {[%clk 0:02:57]}  h6 {[%clk 0:02:58]} 7. Bxf6 {[%clk 0:02:57]}  Qxf6 {[%clk 0:02:58]} 8. Qb3 {[%clk 0:02:58]}  Bxc3+ {[%clk 0:02:49]} 9. bxc3 {[%clk 0:02:48]}  c6 {[%clk 0:02:49]} 10. e3 {[%clk 0:02:47]}  O-O {[%clk 0:02:48]} 11. Be2 {[%clk 0:02:47]}  Nd7 {[%clk 0:02:43]} 12. O-O {[%clk 0:02:47]}  Qd6 {[%clk 0:02:37]} 13. c4 {[%clk 0:02:42]}  dxc4 {[%clk 0:02:37]} 14. Bxc4 {[%clk 0:02:42]}  Nb6 {[%clk 0:02:37]} 15. Rab1 {[%clk 0:02:30]}  Nxc4 {[%clk 0:02:34]} 16. Qxc4 {[%clk 0:02:31]}  Be6 {[%clk 0:02:33]} 17. Qc2 {[%clk 0:02:30]}  b6 {[%clk 0:02:31]} 18. Rfc1 {[%clk 0:02:28]}  Rac8 {[%clk 0:02:30]} 19. Nd2 {[%clk 0:02:25]}  c5 {[%clk 0:02:30]} 20. Ne4 {[%clk 0:02:13]}  Qd5 {[%clk 0:02:25]} 21. dxc5 {[%clk 0:02:04]}  Bf5 {[%clk 0:02:24]} 22. f3 {[%clk 0:01:59]}  Rfe8 {[%clk 0:02:19]} 23. Qc4 {[%clk 0:01:25]}  Bxe4 {[%clk 0:02:07]} 24. fxe4 {[%clk 0:01:24]}  Qc6 {[%clk 0:02:07]} 25. cxb6 {[%clk 0:00:58]}  Qxc4 {[%clk 0:02:05]} 26. Rxc4 {[%clk 0:00:59]}  Rxc4 {[%clk 0:02:06]} 0-1


[Site "https://www.chess.com"]

[Event "Titled Tuesday Blitz December 20 Early 2022"]
[White "APOKALIPSA13"]
[Black "Dreux, Vincent"]
[BlackFideId "658960"]
[WhiteElo "2220"]
[BlackElo "1937"]
[Result "0-1"]
[Round "05"]
[TimeControl "180+2"]
[Date "2022.12.20"]
[WhiteClock "0:00:17"]
[BlackClock "0:00:48"]

1. e4 {[%clk 0:03:00]}  c5 {[%clk 0:02:57]} 2. Be2 {[%clk 0:02:55]}  d6 {[%clk 0:02:53]} 3. f4 {[%clk 0:02:52]}  Nf6 {[%clk 0:02:53]} 4. d3 {[%clk 0:02:52]}  Nc6 {[%clk 0:02:51]} 5. Nf3 {[%clk 0:02:52]}  g6 {[%clk 0:02:47]} 6. O-O {[%clk 0:02:51]}  Bg7 {[%clk 0:02:47]} 7. Qe1 {[%clk 0:02:20]}  O-O {[%clk 0:02:43]} 8. c3 {[%clk 0:02:18]}  b5 {[%clk 0:02:32]} 9. Kh1 {[%clk 0:02:13]}  b4 {[%clk 0:02:31]} 10. Be3 {[%clk 0:02:10]}  Rb8 {[%clk 0:02:30]} 11. Bg1 {[%clk 0:01:54]}  bxc3 {[%clk 0:02:29]} 12. bxc3 {[%clk 0:01:55]}  c4 {[%clk 0:02:09]} 13. d4 {[%clk 0:01:34]}  Nxe4 {[%clk 0:01:51]} 14. Bxc4 {[%clk 0:01:33]}  d5 {[%clk 0:01:51]} 15. Bd3 {[%clk 0:01:23]}  Nd6 {[%clk 0:01:30]} 16. Nbd2 {[%clk 0:01:15]}  Bf5 {[%clk 0:01:29]} 17. Be2 {[%clk 0:01:10]}  Na5 {[%clk 0:01:27]} 18. Nh4 {[%clk 0:01:09]}  Bd7 {[%clk 0:01:22]} 19. Rb1 {[%clk 0:01:05]}  Qc7 {[%clk 0:01:19]} 20. Qg3 {[%clk 0:00:58]}  Nf5 {[%clk 0:01:16]} 21. Nxf5 {[%clk 0:00:56]}  Bxf5 {[%clk 0:01:16]} 22. h3 {[%clk 0:00:47]}  Bxb1 {[%clk 0:01:15]} 23. Nxb1 {[%clk 0:00:46]}  Nc4 {[%clk 0:01:14]} 24. h4 {[%clk 0:00:37]}  Rb2 {[%clk 0:01:02]} 25. a3 {[%clk 0:00:32]}  Rxe2 {[%clk 0:01:00]} 26. h5 {[%clk 0:00:29]}  e6 {[%clk 0:00:54]} 27. Qf3 {[%clk 0:00:25]}  Rb2 {[%clk 0:00:51]} 28. Rd1 {[%clk 0:00:21]}  Rxb1 {[%clk 0:00:50]} 29. Rxb1 {[%clk 0:00:20]}  Nd2 {[%clk 0:00:51]} 30. Qd1 {[%clk 0:00:19]}  Nxb1 {[%clk 0:00:50]} 31. Qxb1 {[%clk 0:00:20]}  Qxf4 {[%clk 0:00:50]} 32. Bh2 {[%clk 0:00:17]}  Qh4 {[%clk 0:00:48]} 0-1


[Site "https://www.chess.com"]

[Event "Titled Tuesday Blitz December 20 Early 2022"]
[White "Abasov, Nijat"]
[Black "gammagramma"]
[WhiteFideId "13402960"]
[WhiteElo "2634"]
[BlackElo "2716"]
[Result "0-1"]
[Round "05"]
[TimeControl "180+2"]
[Date "2022.12.20"]
[WhiteClock "0:00:27"]
[BlackClock "0:01:12"]

1. c4 {[%clk 0:02:29]}  e6 {[%clk 0:02:59]} 2. Nf3 {[%clk 0:02:28]}  d5 {[%clk 0:03:00]} 3. b3 {[%clk 0:02:29]}  Nf6 {[%clk 0:03:00]} 4. Bb2 {[%clk 0:02:29]}  Be7 {[%clk 0:03:00]} 5. e3 {[%clk 0:02:30]}  O-O {[%clk 0:03:01]} 6. Qc2 {[%clk 0:02:30]}  c5 {[%clk 0:03:00]} 7. g4 {[%clk 0:02:31]}  Nc6 {[%clk 0:02:56]} 8. g5 {[%clk 0:02:30]}  Ne4 {[%clk 0:02:52]} 9. h4 {[%clk 0:02:30]}  Nb4 {[%clk 0:02:50]} 10. Qc1 {[%clk 0:02:28]}  dxc4 {[%clk 0:02:50]} 11. Qxc4 {[%clk 0:02:27]}  Qd5 {[%clk 0:02:46]} 12. Na3 {[%clk 0:02:17]}  Qxc4 {[%clk 0:02:42]} 13. Bxc4 {[%clk 0:02:13]}  a6 {[%clk 0:02:37]} 14. Be2 {[%clk 0:01:57]}  b5 {[%clk 0:02:35]} 15. d3 {[%clk 0:01:56]}  Nd6 {[%clk 0:02:34]} 16. O-O {[%clk 0:01:49]}  Bb7 {[%clk 0:02:33]} 17. d4 {[%clk 0:01:42]}  Nf5 {[%clk 0:02:21]} 18. dxc5 {[%clk 0:01:37]}  Bxc5 {[%clk 0:02:22]} 19. Ne5 {[%clk 0:01:23]}  Rfd8 {[%clk 0:02:19]} 20. Rfd1 {[%clk 0:01:17]}  Nxh4 {[%clk 0:02:08]} 21. Kh2 {[%clk 0:01:07]}  Be7 {[%clk 0:01:44]} 22. f4 {[%clk 0:01:07]}  Nf5 {[%clk 0:01:40]} 23. Bc1 {[%clk 0:00:30]}  Rxd1 {[%clk 0:01:36]} 24. Bxd1 {[%clk 0:00:31]}  Rd8 {[%clk 0:01:37]} 25. Be2 {[%clk 0:00:31]}  Bc5 {[%clk 0:01:31]} 26. Ng4 {[%clk 0:00:32]}  Nd3 {[%clk 0:01:18]} 27. Nc2 {[%clk 0:00:28]}  Nxc1 {[%clk 0:01:16]} 28. Rxc1 {[%clk 0:00:29]}  Rd2 {[%clk 0:01:14]} 29. Nd4 {[%clk 0:00:27]}  Bxd4 {[%clk 0:01:12]} 0-1


[Site "https://www.chess.com"]

[Event "Titled Tuesday Blitz December 20 Early 2022"]
[White "Abundo, Casto"]
[Black "rasmussvane"]
[WhiteFideId "5200512"]
[WhiteElo "2175"]
[BlackElo "2949"]
[Result "1-0"]
[Round "05"]
[TimeControl "180+2"]
[Date "2022.12.20"]
[WhiteClock "0:00:02"]
[BlackClock "0:00:02"]

1. e4 {[%clk 0:03:00]}  e5 {[%clk 0:02:56]} 2. Nf3 {[%clk 0:03:00]}  Nc6 {[%clk 0:02:55]} 3. Bb5 {[%clk 0:03:00]}  a6 {[%clk 0:02:55]} 4. Ba4 {[%clk 0:03:01]}  Nf6 {[%clk 0:02:55]} 5. O-O {[%clk 0:03:02]}  Be7 {[%clk 0:02:56]} 6. Re1 {[%clk 0:03:02]}  b5 {[%clk 0:02:56]} 7. Bb3 {[%clk 0:03:03]}  O-O {[%clk 0:02:57]} 8. a4 {[%clk 0:03:03]}  Bb7 {[%clk 0:02:57]} 9. d3 {[%clk 0:02:58]}  d6 {[%clk 0:02:57]} 10. h3 {[%clk 0:02:55]}  Na5 {[%clk 0:02:45]} 11. Ba2 {[%clk 0:02:55]}  c5 {[%clk 0:02:45]} 12. Nbd2 {[%clk 0:02:54]}  b4 {[%clk 0:02:44]} 13. c3 {[%clk 0:02:54]}  Nc6 {[%clk 0:02:37]} 14. Nc4 {[%clk 0:02:40]}  Bc8 {[%clk 0:02:38]} 15. d4 {[%clk 0:02:29]}  bxc3 {[%clk 0:02:36]} 16. dxe5 {[%clk 0:02:19]}  Nxe5 {[%clk 0:02:18]} 17. bxc3 {[%clk 0:01:49]}  Nxc4 {[%clk 0:01:47]} 18. Bxc4 {[%clk 0:01:48]}  Bb7 {[%clk 0:01:47]} 19. e5 {[%clk 0:01:35]}  dxe5 {[%clk 0:01:48]} 20. Nxe5 {[%clk 0:01:35]}  Bd6 {[%clk 0:01:15]} 21. Bg5 {[%clk 0:01:14]}  Bxe5 {[%clk 0:01:11]} 22. Qxd8 {[%clk 0:01:00]}  Rfxd8 {[%clk 0:01:11]} 23. Rxe5 {[%clk 0:01:01]}  Rd7 {[%clk 0:01:04]} 24. Bxf6 {[%clk 0:00:45]}  gxf6 {[%clk 0:01:05]} 25. Rxc5 {[%clk 0:00:46]}  Rc8 {[%clk 0:01:05]} 26. Rxc8+ {[%clk 0:00:44]}  Bxc8 {[%clk 0:01:06]} 27. a5 {[%clk 0:00:24]}  Rc7 {[%clk 0:01:07]} 28. Ra4 {[%clk 0:00:24]}  Bd7 {[%clk 0:00:49]} 29. Rb4 {[%clk 0:00:24]}  Rc5 {[%clk 0:00:49]} 30. Bxa6 {[%clk 0:00:20]}  Rxa5 {[%clk 0:00:50]} 31. Rb6 {[%clk 0:00:17]}  Rc5 {[%clk 0:00:49]} 32. Rxf6 {[%clk 0:00:14]}  Rxc3 {[%clk 0:00:49]} 33. Rf4 {[%clk 0:00:13]}  Be6 {[%clk 0:00:48]} 34. Bb7 {[%clk 0:00:13]}  h6 {[%clk 0:00:46]} 35. Bf3 {[%clk 0:00:13]}  Kg7 {[%clk 0:00:47]} 36. Kh2 {[%clk 0:00:12]}  Rc4 {[%clk 0:00:47]} 37. Rxc4 {[%clk 0:00:09]}  Bxc4 {[%clk 0:00:48]} 38. Kg3 {[%clk 0:00:09]}  f6 {[%clk 0:00:46]} 39. Kf4 {[%clk 0:00:09]}  Be6 {[%clk 0:00:46]} 40. Bg4 {[%clk 0:00:10]}  Bd5 {[%clk 0:00:46]} 41. g3 {[%clk 0:00:09]}  Bf7 {[%clk 0:00:46]} 42. Bf5 {[%clk 0:00:09]}  Bd5 {[%clk 0:00:46]} 43. Be4 {[%clk 0:00:09]}  Bc4 {[%clk 0:00:47]} 44. Ke3 {[%clk 0:00:08]}  Bb3 {[%clk 0:00:47]} 45. Bf5 {[%clk 0:00:08]}  Bd5 {[%clk 0:00:47]} 46. Kd4 {[%clk 0:00:08]}  Bb3 {[%clk 0:00:48]} 47. Kc5 {[%clk 0:00:09]}  Ba2 {[%clk 0:00:48]} 48. Kd6 {[%clk 0:00:10]}  Bb3 {[%clk 0:00:48]} 49. Ke7 {[%clk 0:00:10]}  Bc4 {[%clk 0:00:48]} 50. Be6 {[%clk 0:00:11]}  Bd3 {[%clk 0:00:47]} 51. Bg4 {[%clk 0:00:11]}  Be4 {[%clk 0:00:47]} 52. Be6 {[%clk 0:00:12]}  Bd3 {[%clk 0:00:47]} 53. Bd5 {[%clk 0:00:12]}  Bf5 {[%clk 0:00:48]} 54. h4 {[%clk 0:00:12]}  Bd3 {[%clk 0:00:48]} 55. Ke6 {[%clk 0:00:12]}  Bc2 {[%clk 0:00:47]} 56. Bf3 {[%clk 0:00:13]}  Bb3+ {[%clk 0:00:47]} 57. Kf5 {[%clk 0:00:12]}  Bc4 {[%clk 0:00:48]} 58. Kf4 {[%clk 0:00:13]}  Bb3 {[%clk 0:00:48]} 59. Be4 {[%clk 0:00:13]}  Be6 {[%clk 0:00:48]} 60. Ke3 {[%clk 0:00:14]}  Bc4 {[%clk 0:00:48]} 61. Kd4 {[%clk 0:00:15]}  Be6 {[%clk 0:00:49]} 62. Bd5 {[%clk 0:00:15]}  Bf5 {[%clk 0:00:49]} 63. Bc4 {[%clk 0:00:16]}  Bd7 {[%clk 0:00:49]} 64. Bd3 {[%clk 0:00:17]}  Be6 {[%clk 0:00:49]} 65. Be4 {[%clk 0:00:17]}  Bd7 {[%clk 0:00:50]} 66. Bd5 {[%clk 0:00:18]}  Bf5 {[%clk 0:00:50]} 67. Ke3 {[%clk 0:00:19]}  Bd7 {[%clk 0:00:50]} 68. Kf4 {[%clk 0:00:19]}  Bb5 {[%clk 0:00:50]} 69. Be4 {[%clk 0:00:20]}  Bd7 {[%clk 0:00:50]} 70. Bd3 {[%clk 0:00:20]}  Bc6 {[%clk 0:00:50]} 71. Bf5 {[%clk 0:00:21]}  Bd5 {[%clk 0:00:51]} 72. Bg4 {[%clk 0:00:22]}  Bc4 {[%clk 0:00:51]} 73. Bf3 {[%clk 0:00:23]}  Be6 {[%clk 0:00:51]} 74. Be4 {[%clk 0:00:23]}  Bc4 {[%clk 0:00:51]} 75. Kf5 {[%clk 0:00:23]}  Bf7 {[%clk 0:00:51]} 76. g4 {[%clk 0:00:22]}  Bg6+ {[%clk 0:00:51]} 77. Kf4 {[%clk 0:00:22]}  Bf7 {[%clk 0:00:52]} 78. Bf5 {[%clk 0:00:22]}  Bd5 {[%clk 0:00:52]} 79. Ke3 {[%clk 0:00:22]}  Bc4 {[%clk 0:00:52]} 80. Be4 {[%clk 0:00:23]}  Be6 {[%clk 0:00:52]} 81. Bf5 {[%clk 0:00:22]}  Bd5 {[%clk 0:00:52]} 82. Kd4 {[%clk 0:00:23]}  Bb3 {[%clk 0:00:52]} 83. Kc5 {[%clk 0:00:23]}  Bf7 {[%clk 0:00:52]} 84. Kc6 {[%clk 0:00:23]}  Bb3 {[%clk 0:00:51]} 85. Kd6 {[%clk 0:00:24]}  Bf7 {[%clk 0:00:51]} 86. Be6 {[%clk 0:00:25]}  Bg6 {[%clk 0:00:51]} 87. Ke7 {[%clk 0:00:24]}  Be4 {[%clk 0:00:50]} 88. Bf5 {[%clk 0:00:24]}  Bf3 {[%clk 0:00:49]} 89. Be6 {[%clk 0:00:24]}  Be4 {[%clk 0:00:33]} 90. f4 {[%clk 0:00:23]}  Bf3 {[%clk 0:00:32]} 91. Bf5 {[%clk 0:00:16]}  Be2 {[%clk 0:00:32]} 92. Bd7 {[%clk 0:00:15]}  Bf3 {[%clk 0:00:32]} 93. Be6 {[%clk 0:00:16]}  Be2 {[%clk 0:00:32]} 94. Kd6 {[%clk 0:00:08]}  Bf3 {[%clk 0:00:32]} 95. Kd7 {[%clk 0:00:08]}  Be2 {[%clk 0:00:32]} 96. Ke8 {[%clk 0:00:08]}  Bf3 {[%clk 0:00:33]} 97. Ke7 {[%clk 0:00:09]}  Be2 {[%clk 0:00:33]} 98. g5 {[%clk 0:00:10]}  hxg5 {[%clk 0:00:33]} 99. hxg5 {[%clk 0:00:10]}  fxg5 {[%clk 0:00:32]} 100. f5 {[%clk 0:00:11]}  Bh5 {[%clk 0:00:23]} 101. f6+ {[%clk 0:00:12]}  Kh6 {[%clk 0:00:24]} 102. Bf7 {[%clk 0:00:11]}  Be2 {[%clk 0:00:20]} 103. Be8 {[%clk 0:00:05]}  Bc4 {[%clk 0:00:19]} 104. Bd7 {[%clk 0:00:05]}  g4 {[%clk 0:00:03]} 105. Bxg4 {[%clk 0:00:02]}  Kh7 {[%clk 0:00:02]} 106. Be6 {[%clk 0:00:02]} 1-0


[Site "https://www.chess.com"]

[Event "Titled Tuesday Blitz December 20 Early 2022"]
[White "AnaKuchava"]
[Black "Artels, Lieven"]
[BlackFideId "205834"]
[WhiteElo "2212"]
[BlackElo "1984"]
[Result "1/2-1/2"]
[Round "05"]
[TimeControl "180+2"]
[Date "2022.12.20"]
[WhiteClock "0:00:18"]
[BlackClock "0:00:58"]

1. d4 {[%clk 0:02:20]}  Nf6 {[%clk 0:02:51]} 2. Nf3 {[%clk 0:02:18]}  g6 {[%clk 0:02:50]} 3. c4 {[%clk 0:02:18]}  Bg7 {[%clk 0:02:49]} 4. Nc3 {[%clk 0:02:17]}  O-O {[%clk 0:02:48]} 5. e4 {[%clk 0:02:17]}  d6 {[%clk 0:02:46]} 6. Be2 {[%clk 0:02:16]}  Nbd7 {[%clk 0:02:42]} 7. O-O {[%clk 0:02:16]}  e5 {[%clk 0:02:41]} 8. Re1 {[%clk 0:02:14]}  Ne8 {[%clk 0:02:41]} 9. Bf1 {[%clk 0:02:05]}  Nb6 {[%clk 0:02:38]} 10. dxe5 {[%clk 0:01:55]}  Bd7 {[%clk 0:02:28]} 11. exd6 {[%clk 0:01:53]}  cxd6 {[%clk 0:02:24]} 12. Nd5 {[%clk 0:01:46]}  Nxd5 {[%clk 0:02:23]} 13. exd5 {[%clk 0:01:40]}  f5 {[%clk 0:02:21]} 14. Ng5 {[%clk 0:01:33]}  Nf6 {[%clk 0:02:15]} 15. Ne6 {[%clk 0:01:30]}  Bxe6 {[%clk 0:02:14]} 16. Rxe6 {[%clk 0:01:31]}  Re8 {[%clk 0:02:13]} 17. Bg5 {[%clk 0:01:18]}  Rxe6 {[%clk 0:02:10]} 18. dxe6 {[%clk 0:01:19]}  Qe7 {[%clk 0:02:08]} 19. Bxf6 {[%clk 0:01:16]}  Bxf6 {[%clk 0:02:07]} 20. Qd5 {[%clk 0:01:16]}  Re8 {[%clk 0:02:06]} 21. Rd1 {[%clk 0:00:56]}  Bxb2 {[%clk 0:02:04]} 22. Rb1 {[%clk 0:00:46]}  Be5 {[%clk 0:01:53]} 23. Rxb7 {[%clk 0:00:43]}  Qxe6 {[%clk 0:01:51]} 24. Qxe6+ {[%clk 0:00:40]}  Rxe6 {[%clk 0:01:51]} 25. Rxa7 {[%clk 0:00:26]}  Re8 {[%clk 0:01:50]} 26. g3 {[%clk 0:00:23]}  Rc8 {[%clk 0:01:42]} 27. Rd7 {[%clk 0:00:22]}  Ra8 {[%clk 0:01:35]} 28. Kg2 {[%clk 0:00:18]}  Rxa2 {[%clk 0:01:33]} 29. c5 {[%clk 0:00:18]}  Rc2 {[%clk 0:01:23]} 30. cxd6 {[%clk 0:00:17]}  Bd4 {[%clk 0:01:22]} 31. Rd8+ {[%clk 0:00:16]}  Kf7 {[%clk 0:01:20]} 32. Bb5 {[%clk 0:00:16]}  Rxf2+ {[%clk 0:01:19]} 33. Kh3 {[%clk 0:00:16]}  g5 {[%clk 0:01:16]} 34. Bc4+ {[%clk 0:00:16]}  Kf6 {[%clk 0:01:14]} 35. g4 {[%clk 0:00:15]}  fxg4+ {[%clk 0:01:11]} 36. Kxg4 {[%clk 0:00:16]}  Rf4+ {[%clk 0:01:11]} 37. Kg3 {[%clk 0:00:16]}  Bf2+ {[%clk 0:01:10]} 38. Kg2 {[%clk 0:00:16]}  Rxc4 {[%clk 0:01:07]} 39. Kxf2 {[%clk 0:00:16]}  Ke6 {[%clk 0:01:07]} 40. Rg8 {[%clk 0:00:15]}  Rc5 {[%clk 0:01:04]} 41. Rd8 {[%clk 0:00:12]}  Rd5 {[%clk 0:01:01]} 42. Kg3 {[%clk 0:00:13]}  Rxd6 {[%clk 0:01:00]} 43. Rxd6+ {[%clk 0:00:13]}  Kxd6 {[%clk 0:01:00]} 44. Kg4 {[%clk 0:00:14]}  Ke6 {[%clk 0:01:00]} 45. Kxg5 {[%clk 0:00:14]}  Kf7 {[%clk 0:01:00]} 46. Kh6 {[%clk 0:00:14]}  Kg8 {[%clk 0:01:00]} 47. h4 {[%clk 0:00:15]}  Kh8 {[%clk 0:01:00]} 48. h5 {[%clk 0:00:15]}  Kg8 {[%clk 0:01:00]} 49. Kg5 {[%clk 0:00:16]}  Kg7 {[%clk 0:00:59]} 50. h6+ {[%clk 0:00:16]}  Kh8 {[%clk 0:00:59]} 51. Kf6 {[%clk 0:00:17]}  Kg8 {[%clk 0:00:59]} 52. Ke7 {[%clk 0:00:17]}  Kh8 {[%clk 0:00:58]} 53. Kf7 {[%clk 0:00:18]} 1/2-1/2


[Site "https://www.chess.com"]

[Event "Titled Tuesday Blitz December 20 Early 2022"]
[White "Anata, Choudhury"]
[Black "Lim, Seng Hoo"]
[WhiteFideId "10215026"]
[BlackFideId "5800021"]
[WhiteElo "2172"]
[BlackElo "2440"]
[Result "0-1"]
[Round "05"]
[TimeControl "180+2"]
[Date "2022.12.20"]
[WhiteClock "0:00:11"]
[BlackClock "0:01:24"]

1. d4 {[%clk 0:03:00]}  Nf6 {[%clk 0:02:59]} 2. c4 {[%clk 0:03:00]}  e6 {[%clk 0:02:58]} 3. Nc3 {[%clk 0:03:01]}  d5 {[%clk 0:02:58]} 4. cxd5 {[%clk 0:03:01]}  exd5 {[%clk 0:02:59]} 5. Bg5 {[%clk 0:03:01]}  c6 {[%clk 0:02:58]} 6. e3 {[%clk 0:03:01]}  Bd6 {[%clk 0:02:58]} 7. Bd3 {[%clk 0:03:01]}  O-O {[%clk 0:02:58]} 8. Nf3 {[%clk 0:02:53]}  Re8 {[%clk 0:02:57]} 9. O-O {[%clk 0:02:40]}  h6 {[%clk 0:02:56]} 10. Bh4 {[%clk 0:02:38]}  a5 {[%clk 0:02:53]} 11. Qc2 {[%clk 0:02:27]}  Na6 {[%clk 0:02:53]} 12. a3 {[%clk 0:02:26]}  Nc7 {[%clk 0:02:52]} 13. Rab1 {[%clk 0:02:18]}  Bg4 {[%clk 0:02:51]} 14. Nd2 {[%clk 0:02:12]}  g5 {[%clk 0:02:43]} 15. Bg3 {[%clk 0:02:12]}  Kg7 {[%clk 0:02:35]} 16. Nb3 {[%clk 0:01:30]}  Bxg3 {[%clk 0:02:18]} 17. hxg3 {[%clk 0:01:27]}  b6 {[%clk 0:02:18]} 18. e4 {[%clk 0:01:18]}  dxe4 {[%clk 0:02:07]} 19. Nxe4 {[%clk 0:01:19]}  Ncd5 {[%clk 0:01:59]} 20. Qxc6 {[%clk 0:01:09]}  Nxe4 {[%clk 0:01:57]} 21. f3 {[%clk 0:00:53]}  Nxg3 {[%clk 0:01:52]} 22. fxg4 {[%clk 0:00:46]}  Nxf1 {[%clk 0:01:51]} 23. Rxf1 {[%clk 0:00:46]}  Re6 {[%clk 0:01:47]} 24. Qb7 {[%clk 0:00:28]}  Nf4 {[%clk 0:01:41]} 25. Bf5 {[%clk 0:00:24]}  Re7 {[%clk 0:01:35]} 26. Qc6 {[%clk 0:00:22]}  Qd5 {[%clk 0:01:34]} 27. Qxd5 {[%clk 0:00:15]}  Nxd5 {[%clk 0:01:33]} 28. Rc1 {[%clk 0:00:13]}  Rae8 {[%clk 0:01:29]} 29. Rc6 {[%clk 0:00:12]}  Re1+ {[%clk 0:01:26]} 30. Kh2 {[%clk 0:00:12]}  R8e2 {[%clk 0:01:25]} 31. Rd6 {[%clk 0:00:11]}  Nf4 {[%clk 0:01:24]} 0-1


[Site "https://www.chess.com"]

[Event "Titled Tuesday Blitz December 20 Early 2022"]
[White "Andrei_Skvortsov"]
[Black "Beca, Rodrigo Martins"]
[BlackFideId "1954490"]
[WhiteElo "2717"]
[BlackElo "2976"]
[Result "1-0"]
[Round "05"]
[TimeControl "180+2"]
[Date "2022.12.20"]
[WhiteClock "0:01:09"]
[BlackClock "0:01:43"]

1. e4 {[%clk 0:03:00]}  e5 {[%clk 0:02:59]} 2. d4 {[%clk 0:02:58]}  exd4 {[%clk 0:02:57]} 3. Qxd4 {[%clk 0:02:59]}  Nc6 {[%clk 0:02:57]} 4. Qd3 {[%clk 0:02:59]}  Nf6 {[%clk 0:02:54]} 5. Nc3 {[%clk 0:02:59]}  d5 {[%clk 0:02:52]} 6. Nxd5 {[%clk 0:02:58]}  Nxd5 {[%clk 0:02:50]} 7. Qxd5 {[%clk 0:02:58]}  Qxd5 {[%clk 0:02:47]} 8. exd5 {[%clk 0:02:59]}  Nb4 {[%clk 0:02:47]} 9. Bb5+ {[%clk 0:02:59]}  Bd7 {[%clk 0:02:45]} 10. Bxd7+ {[%clk 0:02:59]}  Kxd7 {[%clk 0:02:46]} 11. Kd1 {[%clk 0:03:00]}  Nxd5 {[%clk 0:02:45]} 12. Nf3 {[%clk 0:03:00]}  f6 {[%clk 0:02:44]} 13. Re1 {[%clk 0:02:31]}  Bc5 {[%clk 0:02:42]} 14. Re2 {[%clk 0:02:31]}  Rad8 {[%clk 0:02:41]} 15. c3 {[%clk 0:02:28]}  Rhe8 {[%clk 0:02:36]} 16. Bd2 {[%clk 0:02:26]}  a5 {[%clk 0:02:28]} 17. Ke1 {[%clk 0:02:04]}  Kc6 {[%clk 0:02:26]} 18. Rd1 {[%clk 0:02:01]}  a4 {[%clk 0:02:19]} 19. Rxe8 {[%clk 0:01:58]}  Rxe8+ {[%clk 0:02:18]} 20. Kf1 {[%clk 0:01:59]}  b5 {[%clk 0:02:16]} 21. Re1 {[%clk 0:01:52]}  Rxe1+ {[%clk 0:02:12]} 22. Nxe1 {[%clk 0:01:50]}  Nb6 {[%clk 0:02:11]} 23. Nd3 {[%clk 0:01:49]}  Bd6 {[%clk 0:02:11]} 24. h3 {[%clk 0:01:45]}  Kd5 {[%clk 0:02:10]} 25. Ke2 {[%clk 0:01:45]}  c5 {[%clk 0:02:11]} 26. Be3 {[%clk 0:01:44]}  g5 {[%clk 0:02:02]} 27. f3 {[%clk 0:01:24]}  Kc4 {[%clk 0:02:00]} 28. Kd2 {[%clk 0:01:21]}  Nd5 {[%clk 0:01:56]} 29. Bxc5 {[%clk 0:01:09]}  Bxc5 {[%clk 0:01:48]} 30. b3+ {[%clk 0:01:09]}  axb3 {[%clk 0:01:43]} 31. Nb2# {[%clk 0:01:09]} 1-0


[Site "https://www.chess.com"]

[Event "Titled Tuesday Blitz December 20 Early 2022"]
[White "Arig, Busra"]
[Black "Mestnikov, Aisen"]
[WhiteFideId "6309356"]
[BlackFideId "34130117"]
[WhiteElo "1850"]
[BlackElo "2043"]
[Result "1-0"]
[Round "05"]
[TimeControl "180+2"]
[Date "2022.12.20"]
[WhiteClock "0:00:33"]
[BlackClock "0:00:03"]

1. e4 {[%clk 0:03:00]}  e5 {[%clk 0:02:32]} 2. Nc3 {[%clk 0:02:33]}  Nc6 {[%clk 0:02:32]} 3. Bc4 {[%clk 0:02:33]}  g6 {[%clk 0:02:32]} 4. d3 {[%clk 0:02:34]}  Bg7 {[%clk 0:02:32]} 5. Nge2 {[%clk 0:02:34]}  Nge7 {[%clk 0:02:32]} 6. O-O {[%clk 0:02:35]}  O-O {[%clk 0:02:33]} 7. f4 {[%clk 0:02:35]}  d6 {[%clk 0:02:32]} 8. f5 {[%clk 0:02:35]}  gxf5 {[%clk 0:02:31]} 9. exf5 {[%clk 0:02:35]}  Bxf5 {[%clk 0:02:30]} 10. Ng3 {[%clk 0:02:35]}  Bg6 {[%clk 0:02:30]} 11. Bg5 {[%clk 0:02:33]}  Qd7 {[%clk 0:02:26]} 12. Qd2 {[%clk 0:02:25]}  d5 {[%clk 0:02:25]} 13. Bb5 {[%clk 0:02:23]}  a6 {[%clk 0:02:25]} 14. Ba4 {[%clk 0:02:23]}  b5 {[%clk 0:02:03]} 15. Bb3 {[%clk 0:02:22]}  f6 {[%clk 0:02:03]} 16. Bh6 {[%clk 0:02:20]}  Nd4 {[%clk 0:02:03]} 17. Bxg7 {[%clk 0:02:18]}  Kxg7 {[%clk 0:02:03]} 18. Nce2 {[%clk 0:02:12]}  Nxb3 {[%clk 0:02:00]} 19. axb3 {[%clk 0:02:11]}  c5 {[%clk 0:02:00]} 20. h4 {[%clk 0:02:07]}  Qg4 {[%clk 0:01:58]} 21. Qe3 {[%clk 0:02:01]}  Rfc8 {[%clk 0:01:13]} 22. h5 {[%clk 0:01:53]}  Bxh5 {[%clk 0:01:12]} 23. Nxh5+ {[%clk 0:01:53]}  Qxh5 {[%clk 0:01:12]} 24. Rf3 {[%clk 0:01:53]}  Ng6 {[%clk 0:01:03]} 25. Raf1 {[%clk 0:01:51]}  Qg5 {[%clk 0:00:58]} 26. Qf2 {[%clk 0:01:35]}  Rc6 {[%clk 0:00:55]} 27. Rg3 {[%clk 0:01:35]}  Qh5 {[%clk 0:00:45]} 28. Rh3 {[%clk 0:01:33]}  Qg4 {[%clk 0:00:40]} 29. Rg3 {[%clk 0:01:32]}  Qe6 {[%clk 0:00:37]} 30. Qe3 {[%clk 0:01:28]}  c4 {[%clk 0:00:27]} 31. Rh3 {[%clk 0:01:18]}  Qe7 {[%clk 0:00:27]} 32. Ng3 {[%clk 0:01:15]}  Qc5 {[%clk 0:00:24]} 33. Qxc5 {[%clk 0:01:12]}  Rxc5 {[%clk 0:00:24]} 34. Nh5+ {[%clk 0:01:13]}  Kf7 {[%clk 0:00:19]} 35. d4 {[%clk 0:01:07]}  exd4 {[%clk 0:00:17]} 36. Nxf6 {[%clk 0:01:08]}  Ke6 {[%clk 0:00:14]} 37. Rxh7 {[%clk 0:01:02]}  Rf8 {[%clk 0:00:12]} 38. Ng4 {[%clk 0:00:47]}  Rxf1+ {[%clk 0:00:12]} 39. Kxf1 {[%clk 0:00:47]}  cxb3 {[%clk 0:00:08]} 40. cxb3 {[%clk 0:00:48]}  Rc1+ {[%clk 0:00:08]} 41. Ke2 {[%clk 0:00:47]}  Rc2+ {[%clk 0:00:08]} 42. Kd3 {[%clk 0:00:48]}  Rxb2 {[%clk 0:00:07]} 43. Nh6 {[%clk 0:00:45]}  Ne5+ {[%clk 0:00:02]} 44. Kxd4 {[%clk 0:00:44]}  Rxb3 {[%clk 0:00:03]} 45. g4 {[%clk 0:00:36]}  Rb4+ {[%clk 0:00:03]} 46. Kc5 {[%clk 0:00:36]}  Rc4+ {[%clk 0:00:03]} 47. Kb6 {[%clk 0:00:36]}  Nxg4 {[%clk 0:00:03]} 48. Ng8 {[%clk 0:00:37]}  d4 {[%clk 0:00:03]} 49. Re7+ {[%clk 0:00:37]}  Kd6 {[%clk 0:00:03]} 50. Rg7 {[%clk 0:00:37]}  Rc6+ {[%clk 0:00:03]} 51. Kb7 {[%clk 0:00:37]}  Ne5 {[%clk 0:00:03]} 52. Nf6 {[%clk 0:00:33]} 1-0


[Site "https://www.chess.com"]